[Event "FIDE Women World Blitz 2021"]
[Site "Warsaw"]
[Date "2021.12.30"]
[Round "15.9"]
[White "Heredia Serrano, Carla"]
[Black "Kazarian, Anna-Maja"]
[Result "1/2-1/2"]
[ECO "C13"]
[WhiteElo "2138"]
[BlackElo "2138"]
[Annotator "NA"]
[PlyCount "154"]
[EventDate "2021.12.29"]
[EventType "swiss"]
[EventCountry "POL"]
[Tiebreak "Cut1 Buchholz"]
[SourceTitle "playchess.com"]
[Source "ChessBase"]
[SourceQuality "1"]
[TimeControl "180+2"]

1. e4 {[%emt 0:00:00]} e6 {[%emt 0:00:00]} 2. d4 {[%emt 0:00:04]} d5 {[%emt 0:
00:01]} 3. Nc3 {[%emt 0:00:00]} Nf6 {[%emt 0:00:01]} 4. Bg5 {[%emt 0:00:03]}
dxe4 5. Nxe4 {[%emt 0:00:01]} Nbd7 {[%emt 0:00:02]} 6. Nf3 {[%emt 0:00:08]} Be7
{[%emt 0:00:01]} 7. Nxf6+ {[%emt 0:00:07]} Bxf6 {[%emt 0:00:01]} 8. Bxf6 {
[%emt 0:00:04]} Qxf6 {[%emt 0:00:02]} 9. Bd3 {[%emt 0:00:11]} c5 {[%emt 0:00:
08]} 10. Qe2 {[%emt 0:00:19]} cxd4 {[%emt 0:00:07]} 11. O-O-O {[%emt 0:00:01]}
a6 {[%emt 0:00:23]} 12. Qe4 {[%emt 0:00:09]} Nc5 {[%emt 0:00:11]} 13. Qxd4 {
[%emt 0:00:06]} Qxd4 {[%emt 0:00:07]} 14. Nxd4 {[%emt 0:00:01]} O-O {[%emt 0:
00:11]} 15. Nb3 {[%emt 0:00:44]} Nxb3+ {[%emt 0:00:30]} 16. axb3 {[%emt 0:00:
01]} e5 {[%emt 0:00:21]} 17. Rhe1 {[%emt 0:00:23]} f6 {[%emt 0:00:20]} 18. Bc4+
{[%emt 0:00:11]} Kh8 {[%emt 0:00:02]} 19. f3 {[%emt 0:00:05]} Bf5 {[%emt 0:00:
14]} 20. g4 {[%emt 0:00:01]} Bg6 {[%emt 0:00:01]} 21. Rd7 {[%emt 0:00:02]} b5 {
[%emt 0:00:01]} 22. Bd3 {[%emt 0:00:19]} Be8 {[%emt 0:00:21]} 23. Rc7 {[%emt 0:
00:01]} Rf7 {[%emt 0:00:09]} 24. Rc5 {[%emt 0:00:05]} Rd8 {[%emt 0:00:12]} 25.
Rd1 {[%emt 0:00:18]} Rfd7 {[%emt 0:00:01]} 26. Be2 {[%emt 0:00:01]} Rxd1+ {
[%emt 0:00:10]} 27. Bxd1 {[%emt 0:00:01]} Kg8 {[%emt 0:00:08]} 28. Be2 {
[%emt 0:00:03]} Rd6 {[%emt 0:00:03]} 29. Rc8 {[%emt 0:00:05]} Kf7 {[%emt 0:00:
01]} 30. Bd3 {[%emt 0:00:01]} g6 {[%emt 0:00:04]} 31. h4 {[%emt 0:00:02]} Bd7 {
[%emt 0:00:01]} 32. Rc7 {[%emt 0:00:01]} Ke8 {[%emt 0:00:06]} 33. Ra7 {[%emt 0:
00:02]} f5 {[%emt 0:00:04]} 34. Ra8+ {[%emt 0:00:01]} Kf7 {[%emt 0:00:02]} 35.
Ra7 {[%emt 0:00:03]} fxg4 {[%emt 0:00:01]} 36. fxg4 {[%emt 0:00:02]} Ke6 {
[%emt 0:00:03]} 37. Be4 {[%emt 0:00:11]} Rb6 {[%emt 0:00:00]} 38. c4 {[%emt 0:
00:06]} Kd6 {[%emt 0:00:02]} 39. Kd2 {[%emt 0:00:03]} Ke7 {[%emt 0:00:04]} 40.
Kc3 {[%emt 0:00:03]} b4+ {[%emt 0:00:01]} 41. Kc2 {[%emt 0:00:01]} Ke6 {
[%emt 0:00:02]} 42. Bd5+ {[%emt 0:00:01]} Ke7 {[%emt 0:00:01]} 43. c5 {[%emt 0:
00:03]} Rb5 {[%emt 0:00:02]} 44. Kd3 {[%emt 0:00:07]} Rxc5 {[%emt 0:00:01]} 45.
Bc4 {[%emt 0:00:01]} a5 {[%emt 0:00:03]} 46. Ke4 {[%emt 0:00:01]} Kd6 {[%emt 0:
00:01]} 47. g5 {[%emt 0:00:02]} Bc6+ {[%emt 0:00:02]} 48. Ke3 {[%emt 0:00:01]}
e4 {[%emt 0:00:01]} 49. Rxh7 {[%emt 0:00:01]} Rf5 {[%emt 0:00:01]} 50. Rh6 {
[%emt 0:00:03]} Rf3+ {[%emt 0:00:01]} 51. Ke2 {[%emt 0:00:01]} Be8 {[%emt 0:00:
01]} 52. h5 {[%emt 0:00:02]} Rh3 {[%emt 0:00:07]} 53. hxg6 {[%emt 0:00:02]}
Rxh6 {[%emt 0:00:01]} 54. gxh6 {[%emt 0:00:01]} Bxg6 {[%emt 0:00:02]} 55. Ke3
Bh7 {[%emt 0:00:05]} 56. Ba6 {[%emt 0:00:04]} Ke5 {[%emt 0:00:00]} 57. Bb7 {
[%emt 0:00:02]} Bg6 {[%emt 0:00:02]} 58. Bc6 {[%emt 0:00:01]} Bh7 {[%emt 0:00:
02]} 59. Bd7 {[%emt 0:00:01]} Kd6 {[%emt 0:00:02]} 60. Bb5 {[%emt 0:00:03]} Kc5
{[%emt 0:00:02]} 61. Be8 {[%emt 0:00:01]} Kd5 {[%emt 0:00:01]} 62. Bd7 {
[%emt 0:00:02]} Ke5 {[%emt 0:00:01]} 63. Bc8 {[%emt 0:00:00]} Kf6 {[%emt 0:00:
00]} 64. Bb7 {[%emt 0:00:02]} Ke5 {[%emt 0:00:01]} 65. Ba8 {[%emt 0:00:01]} Bg6
{[%emt 0:00:01]} 66. Bb7 {[%emt 0:00:01]} Bh7 {[%emt 0:00:01]} 67. Bc8 {
[%emt 0:00:01]} Bg8 {[%emt 0:00:02]} 68. Bb7 {[%emt 0:00:04]} Bh7 {[%emt 0:00:
01]} 69. Bc6 {[%emt 0:00:01]} Bg6 {[%emt 0:00:01]} 70. Bb7 {[%emt 0:00:01]} Bh7
{[%emt 0:00:01]} 71. Ba6 {[%emt 0:00:01]} Bg6 {[%emt 0:00:02]} 72. Be2 {
[%emt 0:00:01]} Bh7 {[%emt 0:00:05]} 73. Bg4 {[%emt 0:00:02]} Bg6 {[%emt 0:00:
06]} 74. Be2 {[%emt 0:00:02]} Bh7 {[%emt 0:00:01]} 75. Bh5 {[%emt 0:00:00]} Kf5
{[%emt 0:00:03]} 76. Bf7 {[%emt 0:00:04]} Kf6 {[%emt 0:00:05]} 77. Bd5 {
[%emt 0:00:03]} Ke5 {[%emt 0:00:00]} 1/2-1/2

[Event "FIDE Women World Blitz 2021"]
[Site "Warsaw"]
[Date "2021.12.30"]
[Round "15.10"]
[White "Bodnaruk, Anastasia"]
[Black "Kiolbasa, Oliwia"]
[Result "1-0"]
[ECO "C95"]
[WhiteElo "2396"]
[BlackElo "2403"]
[Annotator "NA"]
[PlyCount "137"]
[EventDate "2021.12.29"]
[EventType "swiss"]
[EventCountry "POL"]
[Tiebreak "Cut1 Buchholz"]
[SourceTitle "playchess.com"]
[Source "ChessBase"]
[SourceQuality "1"]
[TimeControl "180+2"]

1. e4 {[%emt 0:00:01]} e5 {[%emt 0:00:01]} 2. Nf3 {[%emt 0:00:01]} Nc6 {
[%emt 0:00:02]} 3. Bb5 {[%emt 0:00:01]} a6 {[%emt 0:00:00]} 4. Ba4 {[%emt 0:00:
01]} Nf6 {[%emt 0:00:02]} 5. O-O {[%emt 0:00:01]} Be7 {[%emt 0:00:02]} 6. Re1 {
[%emt 0:00:01]} b5 {[%emt 0:00:01]} 7. Bb3 {[%emt 0:00:01]} d6 {[%emt 0:00:01]}
8. c3 {[%emt 0:00:01]} O-O {[%emt 0:00:02]} 9. h3 {[%emt 0:00:01]} Bb7 {
[%emt 0:00:02]} 10. d4 {[%emt 0:00:01]} Re8 {[%emt 0:00:01]} 11. Nbd2 {[%emt 0:
00:01]} Bf8 {[%emt 0:00:02]} 12. Bc2 {[%emt 0:00:01]} h6 {[%emt 0:00:22]} 13.
d5 {[%emt 0:00:10]} Nb8 {[%emt 0:00:05]} 14. c4 {[%emt 0:00:16]} c6 {[%emt 0:
00:12]} 15. b3 {[%emt 0:00:06]} Nbd7 {[%emt 0:00:19]} 16. Nf1 {[%emt 0:00:21]}
cxd5 {[%emt 0:00:52]} 17. exd5 {[%emt 0:00:07]} bxc4 {[%emt 0:00:18]} 18. bxc4
{[%emt 0:00:00]} Qc7 {[%emt 0:00:07]} 19. Ne3 {[%emt 0:00:05]} Nc5 {[%emt 0:00:
07]} 20. Nf5 {[%emt 0:00:07]} Bc8 {[%emt 0:00:07]} 21. Be3 {[%emt 0:00:25]} Rb8
{[%emt 0:00:09]} 22. Rb1 {[%emt 0:00:05]} Bd7 {[%emt 0:00:05]} 23. N3h4 {
[%emt 0:00:16]} Rxb1 {[%emt 0:00:04]} 24. Bxb1 {[%emt 0:00:01]} Rb8 {[%emt 0:
00:08]} 25. g4 {[%emt 0:00:42]} Nh7 {[%emt 0:00:10]} 26. Nf3 {[%emt 0:00:10]}
Rb2 {[%emt 0:00:06]} 27. Nd2 {[%emt 0:00:19]} Qb6 {[%emt 0:00:08]} 28. Nb3 {
[%emt 0:00:09]} Qb4 {[%emt 0:00:10]} 29. Nxc5 {[%emt 0:00:09]} dxc5 {[%emt 0:
00:01]} 30. d6 {[%emt 0:00:05]} Nf6 {[%emt 0:00:05]} 31. Ne7+ {[%emt 0:00:08]}
Kh8 {[%emt 0:00:03]} 32. Bf5 {[%emt 0:00:01]} Rxa2 {[%emt 0:00:04]} 33. Bxd7 {
[%emt 0:00:06]} Nxd7 {[%emt 0:00:01]} 34. Rf1 {[%emt 0:00:01]} Qxc4 {[%emt 0:
00:02]} 35. Qf3 {[%emt 0:00:04]} Qe6 {[%emt 0:00:03]} 36. Rd1 {[%emt 0:00:01]}
c4 {[%emt 0:00:02]} 37. Qa8 {[%emt 0:00:02]} c3 {[%emt 0:00:01]} 38. Qc8 {
[%emt 0:00:07]} c2 {[%emt 0:00:02]} 39. Rc1 {[%emt 0:00:00]} Qxd6 {[%emt 0:00:
02]} 40. Nf5 {[%emt 0:00:01]} Qd1+ {[%emt 0:00:01]} 41. Kg2 {[%emt 0:00:00]}
Qd5+ {[%emt 0:00:02]} 42. Kg3 {[%emt 0:00:02]} Qd3 {[%emt 0:00:07]} 43. Kg2 {
[%emt 0:00:03]} Qd5+ {[%emt 0:00:02]} 44. Kg3 {[%emt 0:00:01]} Qd3 {[%emt 0:00:
00]} 45. Kh2 {[%emt 0:00:00]} e4 {[%emt 0:00:02]} 46. g5 {[%emt 0:00:07]} hxg5
{[%emt 0:00:02]} 47. Bxg5 {[%emt 0:00:00]} g6 {[%emt 0:00:01]} 48. Nh6 {
[%emt 0:00:02]} Qd6+ {[%emt 0:00:02]} 49. Kg2 {[%emt 0:00:01]} Kg7 {[%emt 0:00:
01]} 50. Ng4 {[%emt 0:00:01]} Qd5 {[%emt 0:00:05]} 51. Be3 {[%emt 0:00:03]} f5
{[%emt 0:00:02]} 52. Nh6 {[%emt 0:00:01]} Bd6 {[%emt 0:00:03]} 53. Qxd7+ {
[%emt 0:00:02]} Kf6 {[%emt 0:00:01]} 54. Qd8+ {[%emt 0:00:01]} Kg7 {[%emt 0:00:
04]} 55. Qd7+ {[%emt 0:00:03]} Kf6 {[%emt 0:00:00]} 56. Ng8+ {[%emt 0:00:05]}
Qxg8 {[%emt 0:00:02]} 57. Qxd6+ {[%emt 0:00:01]} Kf7 {[%emt 0:00:04]} 58. Qd5+
{[%emt 0:00:01]} Kg7 {[%emt 0:00:01]} 59. Bd4+ {[%emt 0:00:01]} Kh7 {[%emt 0:
00:00]} 60. Qd7+ {[%emt 0:00:01]} Kh6 {[%emt 0:00:02]} 61. Be3+ {[%emt 0:00:01]
} g5 {[%emt 0:00:01]} 62. Qxf5 {[%emt 0:00:01]} a5 {[%emt 0:00:05]} 63. h4 {
[%emt 0:00:01]} a4 {[%emt 0:00:02]} 64. Bxg5+ {[%emt 0:00:02]} Kh5 {[%emt 0:00:
03]} 65. Kh2 {[%emt 0:00:04]} Qg6 {[%emt 0:00:02]} 66. Qe5 {[%emt 0:00:04]} Kg4
{[%emt 0:00:02]} 67. Rg1+ {[%emt 0:00:00]} Kf3 {[%emt 0:00:01]} 68. Qf4+ {
[%emt 0:00:05]} Ke2 {[%emt 0:00:01]} 69. Qe3# {[%emt 0:00:01]} 1-0

[Event "FIDE Women World Blitz 2021"]
[Site "Warsaw"]
[Date "2021.12.30"]
[Round "15.10"]
[White "Brambilla, Renee Blandy T."]
[Black "Kucharska, Honorata"]
[Result "0-1"]
[ECO "D36"]
[WhiteElo "1651"]
[BlackElo "2168"]
[Annotator "NA"]
[PlyCount "82"]
[EventDate "2021.12.29"]
[EventType "swiss"]
[EventCountry "POL"]
[Tiebreak "Cut1 Buchholz"]
[SourceTitle "playchess.com"]
[Source "ChessBase"]
[SourceQuality "1"]
[TimeControl "180+2"]

1. d4 {[%emt 0:00:01]} d5 {[%emt 0:00:01]} 2. c4 {[%emt 0:00:01]} e6 {[%emt 0:
00:02]} 3. Nc3 {[%emt 0:00:01]} Nf6 {[%emt 0:00:01]} 4. Bg5 {[%emt 0:00:04]}
Be7 {[%emt 0:00:01]} 5. cxd5 {[%emt 0:00:03]} exd5 {[%emt 0:00:02]} 6. e3 {
[%emt 0:00:03]} c6 {[%emt 0:00:01]} 7. Qc2 {[%emt 0:00:01]} O-O {[%emt 0:00:01]
} 8. Nf3 {[%emt 0:00:02]} h6 {[%emt 0:00:01]} 9. Bh4 {[%emt 0:00:01]} Re8 {
[%emt 0:00:02]} 10. Bd3 {[%emt 0:00:02]} Nbd7 {[%emt 0:00:08]} 11. O-O {
[%emt 0:00:02]} Nf8 {[%emt 0:00:02]} 12. Rac1 {[%emt 0:00:02]} Be6 {[%emt 0:00:
08]} 13. Ne5 {[%emt 0:00:06]} N6d7 {[%emt 0:00:03]} 14. Bxe7 {[%emt 0:00:03]}
Qxe7 {[%emt 0:00:01]} 15. Nxd7 {[%emt 0:00:10]} Qxd7 {[%emt 0:00:01]} 16. Ne2 {
[%emt 0:00:04]} Re7 {[%emt 0:00:34]} 17. Ng3 {[%emt 0:00:02]} Qd8 {[%emt 0:00:
21]} 18. a3 {[%emt 0:00:02]} a5 {[%emt 0:00:02]} 19. h3 {[%emt 0:00:01]} Rc7 {
[%emt 0:00:02]} 20. Qc5 {[%emt 0:00:08]} Rcc8 {[%emt 0:00:10]} 21. Rc2 {
[%emt 0:00:17]} b6 {[%emt 0:00:02]} 22. Qc3 {[%emt 0:00:03]} c5 {[%emt 0:00:08]
} 23. Rfc1 {[%emt 0:00:19]} Qg5 {[%emt 0:00:09]} 24. a4 {[%emt 0:00:38]} h5 {
[%emt 0:00:05]} 25. dxc5 {[%emt 0:00:15]} bxc5 {[%emt 0:00:04]} 26. Qd2 {
[%emt 0:00:07]} h4 {[%emt 0:00:08]} 27. Nf1 {[%emt 0:00:26]} c4 {[%emt 0:00:01]
} 28. Be2 {[%emt 0:00:09]} Nd7 {[%emt 0:00:12]} 29. Bg4 {[%emt 0:00:14]} Bxg4 {
[%emt 0:00:07]} 30. hxg4 {[%emt 0:00:01]} Nf6 {[%emt 0:00:01]} 31. Nh2 {
[%emt 0:00:07]} Rd8 {[%emt 0:00:09]} 32. Qd4 {[%emt 0:00:01]} Ne4 {[%emt 0:00:
16]} 33. f4 {[%emt 0:00:20]} Qe7 {[%emt 0:00:01]} 34. g5 {[%emt 0:00:05]} Nc5 {
[%emt 0:00:04]} 35. Rd1 {[%emt 0:00:05]} Nb3 {[%emt 0:00:01]} 36. Qc3 {[%emt 0:
00:05]} Qb4 {[%emt 0:00:08]} 37. Qxb4 {[%emt 0:00:01]} axb4 {[%emt 0:00:01]}
38. Ng4 {[%emt 0:00:02]} Rxa4 {[%emt 0:00:03]} 39. Ne5 {[%emt 0:00:02]} Raa8 {
[%emt 0:00:04]} 40. Nc6 {[%emt 0:00:01]} Re8 {[%emt 0:00:05]} 41. Re1 {[%emt 0:
00:02]} Ra4 {[%emt 0:00:04]} 0-1

[Event "FIDE Women World Blitz 2021"]
[Site "Warsaw"]
[Date "2021.12.30"]
[Round "15.11"]
[White "Kashlinskaya, Alina"]
[Black "Kovanova, Baira"]
[Result "1-0"]
[ECO "D35"]
[WhiteElo "2482"]
[BlackElo "2331"]
[Annotator "ChessBase"]
[PlyCount "89"]
[EventDate "2021.12.29"]
[EventType "swiss"]
[EventCountry "POL"]
[Tiebreak "Cut1 Buchholz"]
[SourceTitle "playchess.com"]
[Source "ChessBase"]
[SourceQuality "1"]
[TimeControl "180+2"]

1. d4 {[%emt 0:00:01]} d5 {[%emt 0:00:01]} 2. c4 {[%emt 0:00:01]} e6 {[%emt 0:
00:01]} 3. Nc3 {[%emt 0:00:01]} Nf6 {[%emt 0:00:01]} 4. Nf3 {[%emt 0:00:02]}
Nbd7 {[%emt 0:00:03]} 5. cxd5 {[%emt 0:00:01]} exd5 {[%emt 0:00:02]} 6. Bf4 {
[%emt 0:00:02]} c6 {[%emt 0:00:27]} 7. Qc2 {[%emt 0:00:01]} Be7 {[%emt 0:00:04]
} 8. h3 {[%emt 0:00:03]} O-O {[%emt 0:00:11]} 9. e3 {[%emt 0:00:01]} Re8 {
[%emt 0:00:02]} 10. Bd3 {[%emt 0:00:02]} Nf8 {[%emt 0:00:02]} 11. O-O-O {
[%emt 0:00:15]} b5 {[%emt 0:00:10]} 12. g4 {[%emt 0:00:04]} Qa5 {[%emt 0:00:26]
} 13. Ne5 {[%emt 0:00:06]} Bb7 {[%emt 0:00:25]} 14. Kb1 {[%emt 0:00:01]} b4 {
[%emt 0:00:04]} 15. Na4 {[%emt 0:00:06]} c5 {[%emt 0:00:08]} 16. Nxc5 {[%emt 0:
00:12]} Bxc5 {[%emt 0:00:09]} 17. Qxc5 {[%emt 0:00:11]} Qxc5 {[%emt 0:00:13]}
18. dxc5 {[%emt 0:00:01]} Rac8 {[%emt 0:00:01]} 19. c6 {[%emt 0:00:06]} Ba8 {
[%emt 0:00:08]} 20. Ba6 {[%emt 0:00:10]} Rc7 {[%emt 0:00:01]} 21. Nd3 {[%emt 0:
00:05]} Rxc6 {[%emt 0:00:07]} 22. Bb5 {[%emt 0:00:01]} d4 {[%emt 0:00:16]} 23.
Bxc6 Bxc6 {[%emt 0:00:01]} 24. Rhe1 {[%emt 0:00:02]} Nd5 {[%emt 0:00:02]} 25.
exd4 {[%emt 0:00:08]} Ne6 {[%emt 0:00:01]} 26. Bd6 {[%emt 0:00:11]} a5 {
[%emt 0:00:05]} 27. Nc5 {[%emt 0:00:12]} Bb5 {[%emt 0:00:13]} 28. Nxe6 {
[%emt 0:00:16]} fxe6 {[%emt 0:00:01]} 29. Rc1 {[%emt 0:00:02]} Kf7 {[%emt 0:00:
04]} 30. Rc5 {[%emt 0:00:02]} Bd3+ {[%emt 0:00:04]} 31. Ka1 {[%emt 0:00:01]} a4
{[%emt 0:00:12]} 32. Ra5 {[%emt 0:00:03]} b3 {[%emt 0:00:04]} 33. Rxa4 {
[%emt 0:00:06]} bxa2 {[%emt 0:00:02]} 34. Rxa2 {[%emt 0:00:07]} Rd8 {[%emt 0:
00:02]} 35. Ra7+ {[%emt 0:00:01]} Kg6 {[%emt 0:00:02]} 36. Rxe6+ {[%emt 0:00:
02]} Nf6 {[%emt 0:00:05]} 37. Be5 {[%emt 0:00:12]} Rc8 {[%emt 0:00:06]} 38. b4
{[%emt 0:00:18]} Rc2 {[%emt 0:00:03]} 39. g5 {[%emt 0:00:05]} Rc1+ {[%emt 0:00:
04]} 40. Kb2 {[%emt 0:00:01]} Rb1+ {[%emt 0:00:02]} 41. Ka2 {[%emt 0:00:02]}
Rf1 {[%emt 0:00:03]} 42. Rd6 {[%emt 0:00:14]} Rxf2+ {[%emt 0:00:05]} 43. Kb3 {
[%emt 0:00:01]} Kxg5 {[%emt 0:00:01]} 44. Rxg7+ {[%emt 0:00:02]} Bg6 {[%emt 0:
00:01]} 45. h4+ {[%emt 0:00:08]} 1-0

[Event "FIDE Women World Blitz 2021"]
[Site "Warsaw"]
[Date "2021.12.30"]
[Round "15.11"]
[White "Kolaric, Spela"]
[Black "Budkiewicz, Magdalena"]
[Result "0-1"]
[ECO "B23"]
[WhiteElo "2178"]
[BlackElo "1624"]
[Annotator "NA"]
[PlyCount "84"]
[EventDate "2021.12.29"]
[EventType "swiss"]
[EventCountry "POL"]
[Tiebreak "Cut1 Buchholz"]
[SourceTitle "playchess.com"]
[Source "ChessBase"]
[SourceQuality "1"]
[TimeControl "180+2"]

1. e4 {[%emt 0:00:01]} c5 {[%emt 0:00:00]} 2. Nc3 {[%emt 0:00:01]} d6 {[%emt 0:
00:01]} 3. f4 {[%emt 0:00:00]} e6 {[%emt 0:00:01]} 4. Nf3 {[%emt 0:00:01]} Nf6
{[%emt 0:00:01]} 5. g3 {[%emt 0:00:02]} Be7 {[%emt 0:00:02]} 6. Bg2 {[%emt 0:
00:01]} O-O {[%emt 0:00:02]} 7. O-O {[%emt 0:00:01]} Nc6 {[%emt 0:00:01]} 8.
Kh1 {[%emt 0:00:01]} a6 {[%emt 0:00:05]} 9. a4 {[%emt 0:00:02]} Bd7 {[%emt 0:
00:09]} 10. d3 {[%emt 0:00:12]} Rb8 {[%emt 0:00:02]} 11. d4 {[%emt 0:00:26]}
cxd4 {[%emt 0:00:08]} 12. Nxd4 {[%emt 0:00:01]} Nxd4 {[%emt 0:00:06]} 13. Qxd4
{[%emt 0:00:01]} Bc6 {[%emt 0:00:00]} 14. Be3 {[%emt 0:00:13]} Qc7 {[%emt 0:00:
10]} 15. Rad1 {[%emt 0:00:04]} Rbd8 {[%emt 0:00:12]} 16. Qb6 {[%emt 0:00:05]}
Qxb6 {[%emt 0:00:26]} 17. Bxb6 {[%emt 0:00:01]} Rc8 {[%emt 0:00:08]} 18. Rd2 {
[%emt 0:00:03]} Nd7 {[%emt 0:00:01]} 19. Be3 {[%emt 0:00:08]} Nc5 {[%emt 0:00:
02]} 20. b3 {[%emt 0:00:07]} Rfd8 {[%emt 0:00:11]} 21. Rfd1 {[%emt 0:00:03]}
Nd7 {[%emt 0:00:30]} 22. Kg1 {[%emt 0:00:09]} Nf6 {[%emt 0:00:07]} 23. Rd4 {
[%emt 0:00:11]} Be8 {[%emt 0:00:04]} 24. Bd2 {[%emt 0:00:11]} d5 {[%emt 0:00:
07]} 25. Kf1 {[%emt 0:00:21]} Bc5 {[%emt 0:00:08]} 26. Rd3 {[%emt 0:00:01]} d4
{[%emt 0:00:22]} 27. Ne2 {[%emt 0:00:01]} b5 {[%emt 0:00:00]} 28. Ba5 {[%emt 0:
00:03]} Rd7 {[%emt 0:00:07]} 29. Nxd4 {[%emt 0:00:09]} bxa4 {[%emt 0:00:11]}
30. b4 {[%emt 0:00:09]} Bxd4 {[%emt 0:00:10]} 31. Rxd4 {[%emt 0:00:01]} Rxd4 {
[%emt 0:00:06]} 32. Rxd4 {[%emt 0:00:01]} Bb5+ {[%emt 0:00:01]} 33. Ke1 {
[%emt 0:00:10]} Rxc2 {[%emt 0:00:04]} 34. Rd8+ {[%emt 0:00:04]} Ne8 {[%emt 0:
00:03]} 35. Bh3 {[%emt 0:00:09]} g6 {[%emt 0:00:04]} 36. f5 {[%emt 0:00:01]}
Kg7 {[%emt 0:00:02]} 37. fxe6 {[%emt 0:00:01]} fxe6 {[%emt 0:00:04]} 38. Bxe6 {
[%emt 0:00:01]} Re2+ {[%emt 0:00:01]} 39. Kd1 {[%emt 0:00:03]} Rxe4 {[%emt 0:
00:00]} 40. Bc8 {[%emt 0:00:05]} a3 {[%emt 0:00:04]} 41. Rd2 {[%emt 0:00:05]}
Ba4+ {[%emt 0:00:02]} 42. Kc1 {[%emt 0:00:04]} Re1+ {[%emt 0:00:01]} 0-1

[Event "FIDE Women World Blitz 2021"]
[Site "Warsaw"]
[Date "2021.12.30"]
[Round "15.12"]
[White "Zatonskih, Anna"]
[Black "Injac, Teodora"]
[Result "1-0"]
[ECO "E62"]
[WhiteElo "2394"]
[BlackElo "2387"]
[Annotator "NA"]
[PlyCount "77"]
[EventDate "2021.12.29"]
[EventType "swiss"]
[EventCountry "POL"]
[Tiebreak "Cut1 Buchholz"]
[SourceTitle "playchess.com"]
[Source "ChessBase"]
[SourceQuality "1"]
[TimeControl "180+2"]

1. d4 {[%emt 0:00:01]} Nf6 {[%emt 0:00:01]} 2. Nf3 {[%emt 0:00:03]} g6 {
[%emt 0:00:01]} 3. g3 {[%emt 0:00:01]} Bg7 {[%emt 0:00:01]} 4. Bg2 {[%emt 0:00:
01]} O-O {[%emt 0:00:02]} 5. O-O {[%emt 0:00:02]} d6 {[%emt 0:00:06]} 6. c4 {
[%emt 0:00:01]} Nc6 {[%emt 0:00:01]} 7. Nc3 {[%emt 0:00:02]} Bf5 {[%emt 0:00:
01]} 8. b3 {[%emt 0:00:16]} Ne4 {[%emt 0:00:11]} 9. Bb2 {[%emt 0:00:01]} Nxc3 {
[%emt 0:00:08]} 10. Bxc3 {[%emt 0:00:01]} Be4 {[%emt 0:00:01]} 11. Rc1 {
[%emt 0:00:01]} e6 {[%emt 0:00:07]} 12. e3 {[%emt 0:00:23]} d5 {[%emt 0:00:06]}
13. Qe2 {[%emt 0:00:04]} a5 {[%emt 0:00:05]} 14. a3 {[%emt 0:01:04]} Qe7 {
[%emt 0:00:06]} 15. Bb2 {[%emt 0:00:00]} Rfe8 {[%emt 0:00:25]} 16. Rfd1 {
[%emt 0:00:04]} Ra6 {[%emt 0:00:18]} 17. Bf1 {[%emt 0:00:17]} Raa8 {[%emt 0:01:
10]} 18. Nd2 {[%emt 0:00:01]} g5 {[%emt 0:00:07]} 19. Nxe4 {[%emt 0:00:10]}
dxe4 {[%emt 0:00:00]} 20. Bg2 {[%emt 0:00:08]} f5 {[%emt 0:00:01]} 21. f3 {
[%emt 0:00:04]} exf3 {[%emt 0:00:02]} 22. Qxf3 {[%emt 0:00:01]} g4 {[%emt 0:00:
05]} 23. Qe2 {[%emt 0:00:05]} Rad8 {[%emt 0:00:03]} 24. Rc2 {[%emt 0:00:04]} h5
{[%emt 0:00:02]} 25. Rcd2 {[%emt 0:00:29]} h4 {[%emt 0:00:07]} 26. e4 {[%emt 0:
00:01]} Qg5 {[%emt 0:00:21]} 27. Qf2 {[%emt 0:00:09]} h3 {[%emt 0:00:02]} 28.
Bh1 {[%emt 0:00:00]} Ne7 {[%emt 0:00:05]} 29. Bc1 {[%emt 0:00:10]} Qg6 {
[%emt 0:00:01]} 30. Re2 {[%emt 0:00:03]} c6 {[%emt 0:00:02]} 31. Bb2 {[%emt 0:
00:03]} Rd7 {[%emt 0:00:01]} 32. Rde1 {[%emt 0:00:03]} Red8 {[%emt 0:00:07]}
33. exf5 {[%emt 0:00:01]} Qxf5 {[%emt 0:00:02]} 34. Rxe6 {[%emt 0:00:04]} Qxf2+
{[%emt 0:00:02]} 35. Kxf2 {[%emt 0:00:00]} Nf5 {[%emt 0:00:02]} 36. R6e4 {
[%emt 0:00:08]} Nxd4 {[%emt 0:00:04]} 37. Rxg4 {[%emt 0:00:02]} c5 {[%emt 0:00:
02]} 38. Bd5+ {[%emt 0:00:08]} Kf8 {[%emt 0:00:03]} 39. Rf4+ {[%emt 0:00:00]}
1-0

[Event "FIDE Women World Blitz 2021"]
[Site "Warsaw"]
[Date "2021.12.30"]
[Round "15.12"]
[White "Da Silva, Cibele Florencio"]
[Black "Katkov, Michelle"]
[Result "0-1"]
[ECO "C47"]
[WhiteElo "1405"]
[BlackElo "1651"]
[Annotator "NA"]
[PlyCount "46"]
[EventDate "2021.12.29"]
[EventType "swiss"]
[EventCountry "POL"]
[Tiebreak "Cut1 Buchholz"]
[SourceTitle "playchess.com"]
[Source "ChessBase"]
[SourceQuality "1"]
[TimeControl "180+2"]

1. e4 {[%emt 0:00:02]} e5 {[%emt 0:00:01]} 2. Nf3 {[%emt 0:00:02]} Nc6 {
[%emt 0:00:01]} 3. Nc3 {[%emt 0:00:01]} Nf6 {[%emt 0:00:01]} 4. d3 {[%emt 0:00:
06]} Bc5 {[%emt 0:00:02]} 5. h3 {[%emt 0:00:03]} d6 {[%emt 0:00:02]} 6. Bg5 {
[%emt 0:00:05]} h6 {[%emt 0:00:06]} 7. Bxf6 {[%emt 0:00:05]} Qxf6 {[%emt 0:00:
02]} 8. Qe2 {[%emt 0:00:05]} Be6 {[%emt 0:00:07]} 9. Nb5 {[%emt 0:00:11]} Qe7 {
[%emt 0:00:20]} 10. c3 {[%emt 0:00:05]} a6 {[%emt 0:00:05]} 11. Na3 {[%emt 0:
00:02]} Bxa3 {[%emt 0:00:09]} 12. bxa3 {[%emt 0:00:01]} O-O {[%emt 0:00:04]}
13. Rb1 {[%emt 0:00:03]} b6 {[%emt 0:00:03]} 14. c4 {[%emt 0:00:18]} f5 {
[%emt 0:00:17]} 15. Nd2 {[%emt 0:00:05]} Nd4 {[%emt 0:00:05]} 16. Qd1 {[%emt 0:
00:24]} fxe4 {[%emt 0:00:17]} 17. dxe4 {[%emt 0:00:22]} Qh4 {[%emt 0:00:16]}
18. g3 {[%emt 0:00:22]} Qf6 {[%emt 0:00:03]} 19. Rh2 {[%emt 0:00:40]} Rab8 {
[%emt 0:00:40]} 20. Rb2 {[%emt 0:00:02]} b5 {[%emt 0:00:21]} 21. Be2 {[%emt 0:
00:21]} bxc4 {[%emt 0:00:07]} 22. Rxb8 {[%emt 0:00:06]} Rxb8 {[%emt 0:00:01]}
23. Nxc4 {[%emt 0:00:10]} Bxc4 {[%emt 0:00:03]} 0-1